bitfinex-derivatives/quotes_BTCF0:USTF0_20250417
["timestamp","ask_amount","ask_price","bid_price","bid_amount"]
[1744888559832,0.04717775,84354.0,84353.0,0.2117826]
[1744888560733,0.3608,84367.0,84366.0,0.1185643]
[1744888560945,0.5308,84367.0,84366.0,0.1185643]
[1744888561237,0.5308,84367.0,84366.0,0.1517643]
[1744888561442,0.5308,84367.0,84366.0,0.2169643]
[1744888561836,0.5308,84367.0,84366.0,0.22603158]
[1744888562850,0.5428,84367.0,84366.0,0.22703158]
[1744888563331,0.182,84367.0,84366.0,0.22703158]
[1744888563937,0.03327786,84375.0,84374.0,0.1185531]
[1744888564241,0.05017786,84375.0,84374.0,0.1838531]
[1744888564934,0.0319,84381.0,84380.0,0.1185446]
[1744888565135,0.05,84381.0,84380.0,0.1185446]
[1744888565336,0.05,84381.0,84380.0,0.1145446]
[1744888565534,0.05,84381.0,84380.0,0.5338446]
[1744888566046,0.05,84381.0,84380.0,0.5348446]
[1744888566431,0.05,84381.0,84380.0,0.5358446]
[1744888566637,0.00017786,84389.0,84388.0,0.1185334]
[1744888566936,0.005,84410.0,84388.0,0.44827384]
[1744888567245,0.03318,84406.0,84405.0,0.1185095]
[1744888567434,0.1731,84406.0,84405.0,0.1185095]
[1744888567834,0.17318,84406.0,84405.0,0.1185095]
[1744888568445,0.17318,84406.0,84403.0,0.177765]
[1744888568739,0.3509452,84406.0,84405.0,0.1185095]
[1744888568939,0.17318,84406.0,84405.0,0.1185095]
[1744888569139,0.17918,84406.0,84405.0,0.1195095]
[1744888569644,0.3016881,84406.0,84405.0,0.1185095]
[1744888570533,0.3006881,84406.0,84405.0,0.1185095]
[1744888570736,0.18218,84406.0,84405.0,0.1185095]
[1744888571941,0.21278,84406.0,84405.0,0.1195095]
[1744888579041,0.2127,84406.0,84405.0,0.1195095]
[1744888579243,0.21278,84406.0,84405.0,0.1195095]
[1744888580150,0.21278,84406.0,84405.0,0.1505095]
[1744888581443,0.21278,84406.0,84405.0,0.1195095]
[1744888583657,0.3412881,84406.0,84405.0,0.001]
[1744888583952,0.3412881,84406.0,84405.0,0.00108]
[1744888584347,0.3412881,84406.0,84405.0,0.001]
[1744888584756,0.3412881,84406.0,84405.0,0.00108]
[1744888584956,0.3412881,84406.0,84405.0,0.001]
[1744888585145,0.3412881,84406.0,84405.0,0.00108]
[1744888586058,0.3412881,84406.0,84405.0,0.1195895]
[1744888586750,0.3412881,84406.0,84405.0,0.00108]
[1744888587255,0.3412881,84406.0,84405.0,0.1195895]
[1744888587457,0.3412881,84406.0,84405.0,0.1195095]
[1744888587646,0.3412881,84406.0,84405.0,0.1195895]
[1744888592263,0.3412881,84406.0,84405.0,0.00108]
[1744888592974,0.3412881,84406.0,84405.0,0.1195895]
[1744888593862,1.0628881,84406.0,84405.0,0.1195895]
[1744888595360,1.0628881,84406.0,84405.0,0.00108]
[1744888595554,1.0628881,84406.0,84405.0,0.1195895]
[1744888595754,1.0628881,84406.0,84405.0,0.1195095]
[1744888595957,1.0628081,84406.0,84405.0,0.1195095]
[1744888596351,1.06663716,84406.0,84405.0,0.1195095]
[1744888599164,1.06663716,84406.0,84405.0,0.1517095]
[1744888601161,1.0628081,84406.0,84405.0,0.1517095]
[1744888602065,1.06663716,84406.0,84405.0,0.1517095]
[1744888602667,1.06663716,84406.0,84405.0,0.0332]
[1744888602860,1.06663716,84406.0,84405.0,0.001]
[1744888603262,1.06663716,84406.0,84405.0,0.1195095]
[1744888603468,1.06663716,84406.0,84405.0,0.001]
[1744888604169,1.06663716,84406.0,84405.0,0.1195095]
[1744888604370,1.06663716,84406.0,84405.0,0.001]
[1744888605369,1.06663716,84406.0,84405.0,0.1195095]
[1744888605870,1.0628081,84406.0,84405.0,0.1195095]
[1744888606256,1.0322081,84406.0,84405.0,0.1839095]
[1744888606459,1.03611716,84406.0,84405.0,0.1839095]
[1744888606660,1.06761716,84406.0,84405.0,0.1839095]
[1744888610772,1.0637081,84406.0,84405.0,0.1839095]
[1744888611260,1.06753716,84406.0,84405.0,0.1839095]
[1744888611461,1.06753716,84406.0,84405.0,0.034]
[1744888611962,1.06753716,84406.0,84405.0,0.03408]
[1744888612760,1.06753716,84406.0,84405.0,0.1525895]
[1744888614777,1.06753716,84406.0,84405.0,0.1840895]
[1744888615866,1.0637081,84406.0,84405.0,0.1840095]
[1744888616174,1.06753716,84406.0,84405.0,0.1840095]
[1744888619875,0.34593716,84406.0,84405.0,0.1840095]
[1744888620077,1.06753716,84406.0,84405.0,0.1840095]
[1744888620874,1.0637081,84406.0,84405.0,0.1840095]
[1744888621277,1.06753716,84406.0,84405.0,0.1840095]
[1744888622266,1.06753716,84406.0,84405.0,0.034]
[1744888622462,0.1185137,84402.0,84401.0,0.1185138]
[1744888622668,0.1185137,84402.0,84340.0,0.5959226]
[1744888622669,0.1185474,84378.0,84377.0,0.1935874]
[1744888622970,0.6393474,84378.0,84377.0,0.2528618]
[1744888623270,0.6699474,84378.0,84377.0,0.1778218]
[1744888623465,0.6699474,84378.0,84377.0,0.2085218]
[1744888623773,0.6699474,84378.0,84377.0,0.2086018]
[1744888623975,0.6699474,84378.0,84377.0,0.2116018]
[1744888624177,0.6699474,84378.0,84377.0,0.03378]
[1744888624368,0.9399474,84378.0,84377.0,0.003]
[1744888624568,0.9399474,84378.0,84377.0,0.1522488]
[1744888624872,0.9399474,84378.0,84377.0,0.1523288]
[1744888625673,0.9399474,84378.0,84377.0,0.1838288]
[1744888626175,0.9699474,84378.0,84377.0,0.1857488]
[1744888626569,0.9699474,84378.0,84377.0,0.1847488]
[1744888626873,0.9699474,84378.0,84377.0,0.1837488]
[1744888630469,0.9399474,84378.0,84377.0,0.0652]
[1744888630678,0.1185587,84370.0,84368.0,0.1185613]
[1744888630876,0.6393587,84370.0,84369.0,0.11873785]
[1744888631072,0.7361587,84370.0,84369.0,0.11884585]
[1744888631268,0.7361587,84370.0,84369.0,0.14964585]
[1744888631470,0.7361587,84370.0,84369.0,0.18134585]
[1744888632177,0.7361587,84370.0,84369.0,0.18123785]
[1744888632480,0.6702587,84370.0,84369.0,0.18431785]
[1744888632681,0.8002587,84370.0,84369.0,0.18431785]
[1744888633169,0.8002587,84370.0,84369.0,0.18931785]
[1744888635379,0.8305587,84370.0,84369.0,0.18931785]
[1744888636373,0.8305587,84370.0,84369.0,0.18923785]
[1744888639379,0.8002587,84370.0,84369.0,0.18923785]
[1744888640581,0.7693587,84370.0,84369.0,0.18923785]
[1744888641170,0.16,84370.0,84369.0,0.18923785]
[1744888641370,0.16,84370.0,84369.0,0.43923785]
[1744888642283,0.16,84370.0,84369.0,0.18923785]
[1744888647085,0.2785587,84370.0,84369.0,0.18923785]
[1744888647388,0.1919,84370.0,84369.0,0.18931785]
[1744888647591,0.3104587,84370.0,84369.0,0.18931785]
[1744888647888,0.1919,84370.0,84369.0,0.18931785]
[1744888648987,0.16,84370.0,84369.0,0.18931785]
[1744888650683,0.16,84370.0,84369.0,0.202473]
[1744888656085,0.16,84370.0,84369.0,0.18931785]
[1744888656287,0.16,84370.0,84369.0,0.2026184]
[1744888658790,0.3608,84395.0,84384.0,0.0592695]
[1744888658991,0.5308,84395.0,84394.0,0.118525]
[1744888659300,0.6493236,84395.0,84394.0,0.118525]
[1744888659497,0.6493236,84395.0,84394.0,0.212725]
[1744888659697,0.5308,84395.0,84394.0,0.212725]
[1744888659894,0.6493236,84395.0,84394.0,0.22438756]
[1744888660196,0.6493236,84395.0,84394.0,0.212725]
[1744888660600,0.6543236,84395.0,84394.0,0.212725]
[1744888661288,0.6543236,84395.0,84394.0,0.182425]
[1744888661489,0.6873236,84395.0,84394.0,0.182425]
[1744888661700,0.6853236,84395.0,84394.0,0.182425]
[1744888661903,0.6873236,84395.0,84394.0,0.182425]
[1744888662200,0.6873236,84395.0,84394.0,0.149525]
[1744888662794,0.6873236,84395.0,84394.0,0.118525]
[1744888665805,0.3265236,84395.0,84394.0,0.118525]
[1744888666107,0.6873236,84395.0,84394.0,0.118525]
[1744888674419,0.3596236,84395.0,84394.0,0.118525]
[1744888674608,0.7204236,84395.0,84394.0,0.118525]
[1744888675611,0.3596236,84395.0,84394.0,0.118525]
[1744888675805,0.7204236,84395.0,84394.0,0.118525]
[1744888676422,0.3596236,84395.0,84394.0,0.118525]
[1744888676811,0.7204236,84395.0,84394.0,0.118525]
[1744888679519,0.3596236,84395.0,84394.0,0.118525]
[1744888679719,0.7204236,84395.0,84394.0,0.118525]
[1744888680109,0.7204236,84395.0,84394.0,0.150925]
[1744888682024,0.7204236,84395.0,84394.0,0.118525]
[1744888684829,0.177791,84393.0,84392.0,0.1185264]
[1744888685127,0.347791,84393.0,84392.0,0.1185264]
[1744888686123,0.1185306,84390.0,84387.0,0.000108]
[1744888686328,0.1185432,84381.0,84380.0,0.0001458]
[1744888686622,0.1185545,84373.0,84372.0,0.2530311]
[1744888686816,0.6493545,84373.0,84372.0,0.35894347]
[1744888687017,0.7142545,84373.0,84372.0,0.35894347]
[1744888687618,0.7142545,84373.0,84372.0,0.38962347]
[1744888689227,0.7142545,84373.0,84372.0,0.39162347]
[1744888689429,0.7142545,84373.0,84372.0,0.2105111]
[1744888689935,0.6811545,84373.0,84372.0,0.2145111]
[1744888690225,0.5626,84373.0,84372.0,0.2145111]
[1744888690427,0.6811545,84373.0,84372.0,0.2145111]
[1744888692933,0.5626,84373.0,84372.0,0.2145111]
[1744888693127,0.17,84373.0,84372.0,0.2145111]
[1744888710443,0.17,84373.0,84372.0,0.22770494]
[1744888712630,0.17,84373.0,84372.0,0.2276795]
[1744888714434,0.17,84373.0,84372.0,0.22768642]
[1744888716632,0.17,84373.0,84372.0,0.22760642]
[1744888717139,0.2335,84373.0,84372.0,0.22760642]
[1744888718240,0.2335,84373.0,84372.0,0.22760829]
[1744888721746,0.2335,84373.0,84372.0,0.22762015]
[1744888725546,0.2335,84373.0,84372.0,0.2274996]
[1744888727248,0.2335,84373.0,84372.0,0.2275082]
[1744888734561,0.2335,84373.0,84372.0,0.22747827]
[1744888734954,0.2335,84373.0,84372.0,0.23659491]
[1744888735759,0.2335,84373.0,84372.0,0.23659641]
[1744888736560,0.2018,84373.0,84372.0,0.23659641]
[1744888737161,0.00017775,84381.0,84380.0,0.1185446]
[1744888737351,0.02017775,84381.0,84380.0,0.22429327]
[1744888738360,0.02017775,84381.0,84380.0,0.22529327]
[1744888738558,0.02017775,84381.0,84380.0,0.22629327]
[1744888739359,0.02017775,84381.0,84380.0,0.22630104]
[1744888740259,0.02017775,84381.0,84380.0,0.22630167]
[1744888742363,0.02017775,84381.0,84380.0,0.1820446]
[1744888742562,0.05097775,84381.0,84380.0,0.1821246]
[1744888742761,0.16952095,84381.0,84380.0,0.1206246]
[1744888742964,0.16952095,84381.0,84380.0,0.1205446]
[1744888743166,0.16952095,84381.0,84380.0,0.1206246]
[1744888743963,0.19962095,84381.0,84380.0,0.1206246]
[1744888746764,0.08107775,84381.0,84380.0,0.1206246]
[1744888747063,0.08107775,84381.0,84380.0,0.1507246]
[1744888748166,0.08107775,84381.0,84380.0,0.1836246]
[1744888748367,0.44187775,84381.0,84380.0,0.1836246]
[1744888748568,0.08107775,84381.0,84380.0,0.1836246]
[1744888748763,0.44187775,84381.0,84380.0,0.1836246]
[1744888748969,0.44187775,84381.0,84380.0,0.19669563]
[1744888753569,0.08107775,84381.0,84380.0,0.19669563]
[1744888753769,0.44187775,84381.0,84380.0,0.19669563]
[1744888754468,0.08107775,84381.0,84380.0,0.19669563]
[1744888754769,0.44187775,84381.0,84380.0,0.19669563]
[1744888754959,0.44187775,84381.0,84380.0,0.1836246]
[1744888756566,0.08107775,84381.0,84380.0,0.1836246]
[1744888756765,0.44187775,84381.0,84380.0,0.1836246]
[1744888757668,0.08107775,84381.0,84380.0,0.1836246]
[1744888757874,0.44187775,84381.0,84380.0,0.1836246]
[1744888759175,0.05097775,84381.0,84380.0,0.19660933]
[1744888759666,0.05097775,84381.0,84380.0,0.19660923]
[1744888762674,0.05097775,84381.0,84380.0,0.1836246]
[1744888763174,0.05097775,84381.0,84380.0,0.19663565]
[1744888763971,0.02017775,84381.0,84380.0,0.19663565]
[1744888766974,0.02017775,84381.0,84380.0,0.19667884]
[1744888771278,5e-08,84381.0,84380.0,0.19667884]
[1744888771581,0.3608,84398.0,84397.0,0.1185208]
[1744888771775,0.18,84398.0,84397.0,0.13157504]
[1744888771973,0.18,84398.0,84397.0,0.19487504]
[1744888772780,0.184,84398.0,84397.0,0.19487504]
[1744888772982,0.184,84398.0,84397.0,0.22817504]
[1744888773674,0.186,84398.0,84397.0,0.23984109]
[1744888773875,0.2167,84398.0,84397.0,0.23984109]
[1744888774170,0.2167,84398.0,84397.0,0.22678685]
[1744888781285,0.186,84398.0,84397.0,0.22678685]
[1744888781681,0.006,84398.0,84397.0,0.22678685]
[1744888781885,0.016,84398.0,84397.0,0.22678685]
[1744888785177,0.016,84398.0,84397.0,0.24012606]
[1744888785378,0.016,84398.0,84397.0,0.24012579]
[1744888787990,0.016,84398.0,84397.0,0.25575016]
[1744888789790,0.016,84398.0,84397.0,0.22375016]
[1744888790890,0.016,84398.0,84397.0,0.22380018]
[1744888791998,0.016,84398.0,84397.0,0.20817581]
[1744888793593,0.016,84398.0,84397.0,0.17687581]
[1744888798103,0.016,84398.0,84397.0,0.17673026]
[1744888800092,0.016,84398.0,84397.0,0.17667415]
[1744888801203,0.016,84398.0,84397.0,0.20727415]
[1744888801403,0.016,84398.0,84397.0,0.20725806]
[1744888804211,0.016,84398.0,84397.0,0.20725091]
[1744888804911,0.016,84398.0,84397.0,0.2072561]
[1744888806017,0.016,84398.0,84397.0,0.01316925]
[1744888806018,0.1345193,84398.0,84397.0,0.01316925]
[1744888806204,0.1185292,84391.0,84390.0,0.0592649]
[1744888806402,0.6158,84391.0,84390.0,0.0592649]
[1744888806604,0.255,84391.0,84390.0,0.0592649]
[1744888806908,0.006,84398.0,84397.0,0.1185208]
[1744888807114,0.00382906,84403.0,84402.0,0.1185137]
[1744888807315,0.03382906,84403.0,84402.0,0.1836137]
[1744888807499,0.03382906,84403.0,84402.0,0.2576537]
[1744888807705,0.03390906,84403.0,84402.0,0.2576537]
[1744888809019,0.03390906,84403.0,84402.0,0.2606537]
[1744888809214,0.03390906,84403.0,84402.0,0.2616537]
[1744888811416,0.0207398,84403.0,84402.0,0.2616537]
[1744888817220,8e-05,84403.0,84402.0,0.2616537]
[1744888819006,0.00017775,84406.0,84402.0,0.2616537]
[1744888819007,0.00017775,84406.0,84405.0,0.1185095]
[1744888819210,0.09017775,84406.0,84405.0,0.1185095]
[1744888819415,0.09017775,84406.0,84405.0,0.2124095]
[1744888820815,0.12087775,84406.0,84405.0,0.2124095]
[1744888821006,0.12087775,84406.0,84405.0,0.2134095]
[1744888821816,0.12087775,84406.0,84405.0,0.2154095]
[1744888823421,0.09017775,84406.0,84405.0,0.2154095]
[1744888824210,0.09025775,84406.0,84405.0,0.2154095]
[1744888825719,0.00010801,84411.0,84410.0,0.1185025]
[1744888825916,0.02,84411.0,84410.0,0.4793025]
[1744888826108,0.031,84413.0,84412.0,0.1184997]
[1744888826308,0.191,84413.0,84412.0,0.1184997]
[1744888826511,0.191,84413.0,84412.0,0.1490997]
[1744888827815,0.192,84413.0,84412.0,0.1490997]
[1744888830919,0.192,84413.0,84412.0,0.1185797]
[1744888831423,0.2229,84413.0,84412.0,0.1184997]
[1744888831612,0.3413983,84413.0,84412.0,0.1185797]
[1744888832907,0.3413983,84413.0,84412.0,0.1184997]
[1744888833131,0.3413983,84413.0,84412.0,0.1185797]
[1744888835826,0.3413983,84413.0,84412.0,0.1184997]
[1744888836126,0.3415063,84413.0,84412.0,0.1184997]
[1744888836329,0.3415063,84413.0,84409.0,0.1334919]
[1744888836330,0.1185025,84410.0,84409.0,0.192743]
[1744888836527,0.2785025,84410.0,84409.0,0.118503]
[1744888836720,0.2785025,84410.0,84393.0,0.00035872]
[1744888836721,0.0592555,84404.0,84393.0,0.00035872]
[1744888837026,0.1185306,84390.0,84389.0,0.11870705]
[1744888837229,0.6393306,84390.0,84389.0,0.11870705]
[1744888837724,0.6393306,84390.0,84389.0,0.11878705]
[1744888838124,0.7034306,84390.0,84389.0,0.11878705]
[1744888839422,0.7034306,84390.0,84389.0,0.12178705]
[1744888840023,0.7034306,84390.0,84389.0,0.12078705]
[1744888840725,0.7034306,84390.0,84389.0,0.12070705]
[1744888841527,0.7134306,84390.0,84389.0,0.12070705]
[1744888841730,0.7134306,84390.0,84389.0,0.12078705]
[1744888842133,0.7134306,84390.0,84389.0,0.00225775]
[1744888842325,0.1185404,84383.0,84382.0,0.1927808]
[1744888842528,0.6293404,84383.0,84382.0,0.1185408]
[1744888842829,0.6924404,84383.0,84382.0,0.1185408]
[1744888843819,0.6924404,84383.0,84382.0,0.1205408]
[1744888844025,0.6924404,84383.0,84382.0,0.1509408]
[1744888844327,0.7227404,84383.0,84382.0,0.1509408]
[1744888844527,0.6042,84383.0,84382.0,0.1509408]
[1744888844732,0.6042,84383.0,84382.0,0.1519408]
[1744888844932,0.15,84383.0,84382.0,0.1519408]
[1744888845123,0.15,84383.0,84382.0,0.1835408]
[1744888845635,0.15,84383.0,84382.0,0.1825408]
[1744888847328,0.2685404,84383.0,84382.0,0.1825408]
[1744888847531,0.2685404,84383.0,84382.0,0.1510208]
[1744888848231,0.3318404,84383.0,84382.0,0.1510208]
[1744888848930,0.2133,84383.0,84382.0,0.1510208]
[1744888850027,0.2133,84383.0,84382.0,0.1840208]
[1744888850745,0.1833,84383.0,84382.0,0.1839408]
[1744888852642,0.15,84383.0,84382.0,0.1839408]
[1744888879360,0.15,84383.0,84382.0,0.2141408]
[1744888888760,0.15,84383.0,84382.0,0.1839408]
[1744888894059,0.0312,84397.0,84396.0,0.1185222]
[1744888894264,0.1512,84397.0,84396.0,0.1809222]
[1744888894455,0.18358,84397.0,84396.0,0.1809222]
[1744888895260,0.18858,84397.0,84396.0,0.1809222]
[1744888896170,0.18858,84397.0,84396.0,0.1490222]
[1744888896953,0.18558,84397.0,84396.0,0.1520222]
[1744888897156,0.18358,84397.0,84396.0,0.1530222]
[1744888897969,0.18358,84397.0,84396.0,0.1540222]
[1744888898871,0.18358,84397.0,84396.0,0.1530222]
[1744888899572,0.18358,84397.0,84396.0,0.1510222]
[1744888899771,0.18358,84397.0,84396.0,0.1520222]
[1744888902172,0.18358,84397.0,84396.0,0.1500222]
[1744888902368,0.18358,84397.0,84396.0,0.1520222]
[1744888906870,0.54438,84397.0,84396.0,0.1520222]
[1744888907077,0.6629008,84397.0,84396.0,0.1520222]
[1744888907678,0.54438,84397.0,84396.0,0.1520222]
[1744888910382,0.18358,84397.0,84396.0,0.1520222]
[1744888910581,0.54438,84397.0,84396.0,0.1520222]
[1744888910772,0.54438,84397.0,84396.0,0.1831222]
[1744888910973,0.6629008,84397.0,84396.0,0.1520222]
[1744888912384,0.118525,84394.0,84393.0,0.0592627]
[1744888912582,0.298525,84394.0,84393.0,0.0592627]
[1744888912783,0.362525,84394.0,84393.0,0.0592627]
[1744888912984,0.372525,84394.0,84393.0,0.0592627]
[1744888913683,0.372525,84394.0,84393.0,0.1777859]
[1744888913876,0.0592643,84392.0,84388.0,0.0592663]
[1744888914082,0.479332,84389.0,84388.0,0.2370616]
[1744888914280,0.639332,84389.0,84388.0,0.2370616]
[1744888914480,0.735732,84389.0,84388.0,0.2370616]
[1744888915280,0.735732,84389.0,84388.0,0.2400616]
[1744888915883,0.855732,84389.0,84388.0,0.2400616]
[1744888916193,0.855732,84389.0,84388.0,0.2410616]
[1744888918604,0.7372,84389.0,84388.0,0.2410616]
[1744888918904,0.6408,84389.0,84388.0,0.2410616]
[1744888919089,0.5208,84389.0,84388.0,0.2410616]
[1744888919903,0.16,84389.0,84388.0,0.6018616]
[1744888920101,0.4114,84396.0,84395.0,0.1185236]
[1744888920302,0.4214,84396.0,84395.0,0.1185236]
[1744888920791,0.5399222,84396.0,84395.0,0.0313]
[1744888921292,0.6045222,84396.0,84395.0,0.0313]
[1744888921697,0.1931222,84396.0,84395.0,0.1498236]
[1744888922388,0.2031222,84396.0,84395.0,0.1185236]
[1744888924202,0.2031222,84396.0,84395.0,0.1506236]
[1744888928006,0.5639222,84396.0,84395.0,0.1506236]
[1744888930302,0.5639222,84396.0,84395.0,0.1185236]
[1744888931707,0.1185362,84386.0,84385.0,0.237065]
[1744888931899,0.6293362,84386.0,84385.0,0.237065]
[1744888932809,0.1185418,84382.0,84378.0,8e-05]
[1744888932999,0.6593418,84382.0,84381.0,0.1552391]
[1744888933307,0.7213418,84382.0,84381.0,0.1553191]
[1744888933799,0.6028,84382.0,84381.0,0.1553191]
[1744888933995,0.7213418,84382.0,84381.0,0.1884191]
[1744888934904,0.7213418,84382.0,84381.0,0.1934191]
[1744888936203,0.7113418,84382.0,84381.0,0.1934191]
[1744888936711,0.6493418,84382.0,84381.0,0.1934191]
[1744888940116,0.6593418,84382.0,84381.0,0.1934191]
[1744888946308,0.6919418,84382.0,84381.0,0.1934191]
[1744888947311,0.6819418,84382.0,84381.0,0.1934191]
[1744888948307,0.6493418,84382.0,84381.0,0.1934191]
[1744888949112,0.17,84382.0,84381.0,0.1934191]
[1744888949309,0.4114,84384.0,84383.0,0.1185404]
[1744888949819,0.4114,84384.0,84383.0,0.1820404]
[1744888950926,0.4114,84384.0,84383.0,0.1860404]
[1744888951625,0.4114,84384.0,84383.0,0.1880404]
[1744888953928,0.18,84384.0,84383.0,0.1880404]
[1744888960420,0.1185222,84396.0,84395.0,0.1185236]
[1744888960630,0.2785222,84396.0,84395.0,0.1185236]
[1744888960825,0.2785222,84396.0,84395.0,0.2117236]
[1744888962632,0.3109222,84396.0,84395.0,0.2117236]
[1744888962830,0.1924,84396.0,84395.0,0.2117236]
[1744888963017,0.16,84396.0,84395.0,0.2117236]
[1744888971127,0.16,84396.0,84395.0,0.1816236]
[1744888972237,0.2573,84396.0,84395.0,0.1816236]
[1744888975940,0.16,84396.0,84395.0,0.1816236]
[1744888986141,0.16,84396.0,84395.0,0.1508236]
[1744888986545,0.1928,84396.0,84395.0,0.1508236]
[1744888988836,0.1928,84396.0,84395.0,0.1814236]
[1744889001258,0.1928,84396.0,84395.0,0.2145236]
[1744889001657,0.1928,84396.0,84395.0,0.1814236]
[1744889003555,0.1928,84396.0,84395.0,0.1508236]
[1744889004154,0.0592652,84392.0,84391.0,0.1185236]
[1744889004355,0.3608,84394.0,84393.0,0.1185264]
[1744889004653,0.5108,84394.0,84393.0,0.1486264]
[1744889004859,0.5433,84394.0,84393.0,0.1486264]
[1744889005465,0.5433,84394.0,84393.0,0.1496264]
[1744889006560,0.1825,84394.0,84393.0,0.1814264]
[1744889024267,0.2133,84394.0,84393.0,0.1814264]
[1744889025769,0.1825,84394.0,84393.0,0.1814264]
[1744889030374,0.15,84394.0,84393.0,0.1814264]
[1744889030579,0.15,84394.0,84393.0,0.2555464]
[1744889055193,0.00035873,84413.0,84393.0,0.63702]
[1744889055491,0.0331,84422.0,84421.0,0.1184871]
[1744889055690,0.08,84422.0,84421.0,0.5531671]
[1744889056180,1e-07,84422.0,84421.0,0.6167671]
[1744889056386,0.00017775,84430.0,84429.0,0.1184758]
[1744889056578,0.02017775,84430.0,84429.0,0.4792758]
[1744889056782,0.02017775,84430.0,84429.0,0.5092758]
[1744889057179,0.02025775,84430.0,84429.0,0.5092758]
[1744889057581,0.02025775,84430.0,84429.0,0.51800414]
[1744889058192,0.02525775,84430.0,84429.0,0.51800414]
[1744889058686,0.02525775,84430.0,84429.0,0.52959037]
[1744889058892,0.00525775,84430.0,84429.0,0.52959037]
[1744889060401,0.00517775,84430.0,84429.0,0.52959037]
[1744889060699,0.00517775,84430.0,84429.0,0.16879037]
[1744889060889,0.00517775,84430.0,84429.0,0.89039037]
[1744889061296,0.00525775,84430.0,84429.0,0.89039037]
[1744889063004,0.00525775,84430.0,84429.0,0.88166203]
[1744889063903,0.0325,84449.0,84435.0,0.1184674]
[1744889063904,1e-07,84436.0,84435.0,0.1184674]
[1744889064088,1e-07,84436.0,84435.0,0.1921874]
[1744889064589,0.2784661,84436.0,84435.0,0.1184674]
[1744889064795,0.1600001,84436.0,84435.0,0.1184674]
[1744889064991,0.2454001,84436.0,84435.0,0.1184674]
[1744889065403,0.2454001,84436.0,84432.0,0.0592354]
[1744889065593,0.0592344,84435.0,84434.0,0.1777018]
[1744889065790,0.2092344,84435.0,84434.0,0.1777018]
[1744889065989,0.2637344,84435.0,84434.0,0.1777018]
[1744889067501,0.2647344,84435.0,84434.0,0.1777018]
[1744889068306,0.2657344,84435.0,84434.0,0.1777018]
[1744889069209,0.1184688,84434.0,84433.0,0.0592351]
[1744889069409,0.2784688,84434.0,84433.0,0.0592351]
[1744889069601,0.3324688,84434.0,84433.0,0.0592351]
[1744889070406,0.118473,84433.0,84430.0,0.0592369]
[1744889070705,0.118473,84431.0,84430.0,0.1777085]
[1744889070897,0.298473,84431.0,84430.0,0.1777085]
[1744889071102,0.353373,84431.0,84430.0,0.1777085]
[1744889072804,0.714173,84431.0,84430.0,0.1777085]
[1744889074104,0.715173,84431.0,84430.0,0.1777085]
[1744889078915,0.354373,84431.0,84430.0,0.1777085]
[1744889088820,0.331773,84431.0,84430.0,0.1777085]
[1744889089118,0.299473,84431.0,84430.0,0.1777085]
[1744889089908,0.299473,84431.0,84430.0,0.2407085]
[1744889090319,0.181,84431.0,84430.0,0.2407085]
[1744889090629,0.171,84431.0,84430.0,0.2407085]
[1744889091014,0.17108,84431.0,84430.0,0.2407085]
[1744889093226,0.289553,84431.0,84430.0,0.2407085]
[1744889094225,0.17108,84431.0,84430.0,0.2407085]
[1744889095917,0.289553,84431.0,84430.0,0.2407085]
[1744889096120,0.17108,84431.0,84430.0,0.2407085]
[1744889101032,0.171,84431.0,84430.0,0.2407085]
[1744889101227,0.17108,84431.0,84430.0,0.2407085]
[1744889101432,0.171,84431.0,84430.0,0.2407085]
[1744889101635,0.17108,84431.0,84430.0,0.2407085]
[1744889101838,0.00108,84431.0,84430.0,0.2407085]
[1744889102839,0.00108,84431.0,84430.0,0.24965017]
[1744889103629,0.00108,84431.0,84430.0,0.32305017]
[1744889109844,0.01108,84431.0,84430.0,0.32305017]
[1744889112344,0.01108,84431.0,84430.0,0.68385017]
[1744889122341,0.01108,84431.0,84430.0,0.61045017]
[1744889122546,0.01108,84431.0,84430.0,0.68381017]
[1744889124958,0.01108,84431.0,84430.0,0.65201017]
[1744889134953,0.01108,84431.0,84430.0,0.68261017]
[1744889136062,0.011,84431.0,84430.0,0.68261017]
[1744889136263,0.01108,84431.0,84430.0,0.68261017]
[1744889136951,0.00108,84431.0,84430.0,0.68261017]
[1744889140461,0.01108,84431.0,84430.0,0.68261017]
[1744889163793,0.01108,84431.0,84430.0,0.32181017]
[1744889163982,0.01108,84431.0,84430.0,0.68261017]
[1744889165092,0.01108,84431.0,84430.0,0.32181017]
[1744889165288,0.01108,84431.0,84430.0,0.65201017]
[1744889167693,0.01108,84431.0,84430.0,0.57885017]
[1744889167993,0.01108,84431.0,84430.0,0.65201017]
[1744889175904,0.01108,84431.0,84430.0,0.61155017]
[1744889176204,0.01108,84431.0,84430.0,0.68471017]
[1744889179206,0.01108,84431.0,84430.0,0.32391017]
[1744889179407,0.01108,84431.0,84430.0,0.68471017]
[1744889179808,0.01108,84431.0,84430.0,0.32391017]
[1744889180006,0.01108,84431.0,84430.0,0.68471017]
[1744889182414,0.01108,84431.0,84430.0,0.32391017]
[1744889182603,0.00108,84431.0,84430.0,0.68471017]
[1744889188011,0.001,84431.0,84430.0,0.68471017]
[1744889188214,0.00108,84431.0,84430.0,0.68471017]
[1744889190720,0.00108,84431.0,84430.0,0.32391017]
[1744889190925,0.00108,84431.0,84430.0,0.68471017]
[1744889195523,1e-07,84436.0,84435.0,0.1184674]
[1744889196023,1e-07,84436.0,84435.0,0.1816674]
[1744889196214,8.01e-05,84436.0,84435.0,0.1816674]
[1744889196814,0.0020801,84436.0,84435.0,0.1816674]
[1744889197324,0.0030801,84436.0,84435.0,0.1816674]
[1744889197823,0.0010801,84436.0,84435.0,0.1816674]
[1744889198011,8.01e-05,84436.0,84435.0,0.1836674]
[1744889203728,8.01e-05,84436.0,84435.0,0.2567874]
[1744889204724,8.01e-05,84436.0,84435.0,0.1836674]
[1744889205024,0.0100801,84436.0,84435.0,0.2567874]
[1744889205623,0.0100801,84436.0,84435.0,0.1536674]
[1744889205821,0.0100801,84436.0,84435.0,0.2267874]
[1744889210920,0.0100001,84436.0,84435.0,0.2595874]
[1744889211221,0.0100801,84436.0,84435.0,0.2595874]
[1744889213626,0.00010801,84441.0,84440.0,0.1184604]
[1744889213826,0.00010801,84441.0,84440.0,0.5711604]
[1744889214027,0.00017775,84444.0,84443.0,0.1184562]
[1744889214325,0.02017775,84444.0,84443.0,0.1184562]
[1744889214514,0.02017775,84444.0,84443.0,0.1791562]
[1744889216624,0.02117775,84444.0,84443.0,0.1791562]
[1744889216824,0.02217775,84444.0,84443.0,0.1791562]
[1744889220135,0.02217775,84444.0,84443.0,0.5399562]